bitfinex-derivatives/quotes_SOLF0:USTF0_20251101
["timestamp","ask_amount","ask_price","bid_price","bid_amount"]
[1762006964598,9.08185891,184.03,183.98,2.92]
[1762006964796,8.22185891,184.02,183.98,2.92]
[1762006964999,4.44423468,184.01,183.98,2.92]
[1762006965298,4.44423468,184.0,183.98,2.92]
[1762006965500,4.44423468,183.99,183.98,2.92]
[1762006965805,5.7528,184.03,183.98,2.92]
[1762006966099,8.22317614,184.02,183.98,2.92]
[1762006966291,4.44462199,184.01,183.99,2.79]
[1762006966497,4.8928,184.03,183.99,2.79]
[1762006966687,4.44482902,184.02,183.99,2.79]
[1762006966882,4.44482902,184.01,183.99,2.79]
[1762006967099,4.8928,184.03,183.99,2.79]
[1762006967289,4.44637622,184.02,183.99,2.79]
[1762006967488,4.44637622,184.01,183.99,2.79]
[1762006967689,4.8928,184.03,183.99,2.79]
[1762006967889,4.44637893,184.02,183.99,2.79]
[1762006968089,4.44637893,184.01,183.99,2.79]
[1762006968390,4.44637893,184.0,183.99,2.79]
[1762006969792,4.8928,184.03,184.0,2.79]
[1762006970102,4.44960481,184.02,184.01,2.79]
[1762006970303,4.45104658,184.02,184.01,2.79]
[1762006971096,4.45104658,184.02,184.01,7.86524606]
[1762006971694,4.8921,184.06,184.01,7.86524606]
[1762006971898,8.23679435,184.05,184.02,2.79]
[1762006972095,4.45106295,184.04,184.03,2.79]
[1762006972300,4.45106295,184.04,184.03,83.35]
[1762006972496,4.45106295,184.04,184.03,88.42524606]
[1762006973095,4.79379154,184.07,184.04,2.79]
[1762006973303,2.78,184.21,184.07,2.79]
[1762006973503,4.8894,184.16,184.11,2.79]
[1762006973696,3.78808823,184.15,184.13,2.79]
[1762006973996,2.78,184.19,184.13,2.79]
[1762006974198,6.56890048,184.18,184.13,2.79]
[1762006974396,3.78890048,184.17,184.13,2.79]
[1762006974601,3.78890048,184.16,184.13,2.79]
[1762006975201,4.889,184.17,184.13,2.79]
[1762006975705,7.669,184.17,184.13,2.79]
[1762006976202,8.23,184.16,184.13,2.79]
[1762006977996,8.23,184.16,184.15,6.11386425]
[1762006978202,4.8876,184.23,184.16,2.79]
[1762006978401,2.78,184.24,184.16,2.79]
[1762006978706,2.78,184.24,184.18,2.79]
[1762006979204,4.8866,184.26,184.18,2.79]
[1762006979609,4.8866,184.26,184.19,2.79]
[1762006980609,2.78,184.27,184.19,2.79]
[1762006980903,2.78,184.25,184.21,3.32386425]
[1762006981205,2.78,184.25,184.22,64.86]
[1762006981507,2.78,184.25,184.17,80.44]
[1762006981707,2.78,184.19,184.12,80.44]
[1762006983104,4.8888,184.18,184.12,80.44]
[1762006983804,2.78,184.19,184.12,83.23]
[1762006984002,2.78,184.19,184.13,2.79]
[1762006984399,17.02432609,184.26,184.13,2.79]
[1762006984400,8.12,184.26,184.14,5.9697]
[1762006984605,8.12,184.26,184.16,2.79]
[1762006984807,8.12,184.26,184.19,2.79]
[1762006985615,8.12,184.26,184.2,2.79]
[1762006985911,8.12,184.26,184.21,2.79]
[1762006986110,8.12,184.26,184.23,2.79]
[1762006988308,8.12,184.26,184.24,32.0]
[1762006988508,10.9,184.26,184.24,32.0]
[1762006988709,10.9,184.26,184.22,50.7]
[1762006989109,10.9,184.26,184.22,53.49]
[1762006990618,2.78,184.25,184.22,50.7]
[1762006991011,8.12,184.26,184.22,50.7]
[1762006994617,8.12,184.26,184.22,45.95]
[1762006994821,8.12,184.26,184.22,48.74]
[1762006995026,8.12,184.26,184.23,2.79]
[1762006996316,2.79,184.25,184.24,68.54]
[1762006997116,8.12,184.26,184.25,2.7]
[1762006997514,8.12,184.26,184.22,2.7]
[1762006997719,8.12,184.26,184.24,2.7]
[1762006999528,8.12,184.26,184.25,44.58]
[1762007000926,10.9,184.26,184.2,2.7]
[1762007001123,10.9,184.26,184.22,2.94]
[1762007004123,10.9,184.26,184.23,80.22]
[1762007005920,8.12,184.26,184.24,2.94]
[1762007011929,8.12,184.26,184.25,83.08]
[1762007012426,8.12,184.26,184.25,2.94]
[1762007012635,8.12,184.26,184.23,2.94]
[1762007012929,2.78,184.25,184.2,2.94]
[1762007013133,2.78,184.25,184.24,80.14]
[1762007013927,8.12,184.26,184.24,80.14]
[1762007014126,8.12,184.26,184.25,2.94]
[1762007014629,8.12,184.26,184.24,80.14]
[1762007014831,8.12,184.26,184.25,2.94]
[1762007015032,2.78,184.32,184.25,17.36038558]
[1762007015235,2.78,184.32,184.31,5.02967513]
[1762007015435,7.06549091,184.32,184.31,9.30733876]
[1762007015636,7.06549091,184.32,184.31,4.27766363]
[1762007016339,7.06549091,184.32,184.31,9.30733876]
[1762007017139,7.06549091,184.32,184.31,4.27766363]
[1762007017830,7.06549091,184.32,184.31,84.37766363]
[1762007018635,4.28549091,184.32,184.31,91.08389714]
[1762007018837,4.28549091,184.32,184.31,84.37766363]
[1762007022237,4.28549091,184.32,184.31,94.52038558]
[1762007023336,4.28549091,184.32,184.31,94.48038558]
[1762007025148,6.59,184.34,184.31,94.48038558]
[1762007025332,6.59,184.34,184.33,6.73949866]
[1762007025534,6.59,184.34,184.33,11.01716229]
[1762007026437,6.59,184.34,184.33,13.74716229]
[1762007026743,6.59,184.34,184.33,7.00766363]
[1762007027943,6.59,184.34,184.33,71.74766363]
[1762007028540,6.59,184.34,184.33,81.89038558]
[1762007028847,9.38,184.34,184.33,84.27766363]
[1762007029737,9.38,184.34,184.33,4.27766363]
[1762007029936,9.38,184.34,184.33,53.75766363]
[1762007030132,9.38,184.34,184.33,60.51007532]
[1762007030334,9.38,184.34,184.33,11.03007532]
[1762007030540,13.1152789,184.34,184.33,59.51766363]
[1762007030838,13.1152789,184.34,184.33,84.27766363]
[1762007031038,13.1152789,184.34,184.33,4.27766363]
[1762007031239,13.1152789,184.34,184.33,55.01766363]
[1762007031641,9.38,184.34,184.33,55.01766363]
[1762007031850,13.11516722,184.34,184.33,55.01766363]
[1762007032149,9.38,184.34,184.33,60.08139415]
[1762007032341,13.1150517,184.34,184.33,60.08139415]
[1762007032743,2.79,184.33,184.3,6.75241169]
[1762007033048,6.52354254,184.32,184.31,4.25045219]
[1762007034047,3.73354254,184.32,184.31,4.25045219]
[1762007034940,2.79,184.33,184.31,70.15045219]
[1762007035140,2.79,184.33,184.31,65.9]
[1762007036235,6.59,184.34,184.31,65.9]
[1762007036448,6.59,184.34,184.31,68.63]
[1762007036643,6.59,184.34,184.32,2.73]
[1762007037240,6.59,184.34,184.33,38.56]
[1762007037444,10.78781678,184.34,184.33,38.56]
[1762007039345,10.78781678,184.34,184.33,41.29]
[1762007039542,6.59,184.34,184.33,48.04241169]
[1762007039943,6.59,184.34,184.33,6.75317723]
[1762007040250,6.59,184.34,184.33,62.68317723]
[1762007040552,6.59,184.34,184.33,55.93]
[1762007040746,6.59,184.34,184.33,62.68387808]
[1762007041055,6.59,184.34,184.33,53.2]
[1762007041354,6.59,184.34,184.33,79.92]
[1762007042053,6.59,184.34,184.33,82.65]
[1762007042440,6.59,184.34,184.33,82.63]
[1762007044749,6.59,184.34,184.33,86.83788742]
[1762007045250,6.59,184.34,184.33,6.93788742]
[1762007045452,6.59,184.34,184.33,86.81788742]
[1762007046462,4.8834,184.38,184.34,2.73]
[1762007046760,4.8834,184.38,184.36,2.73]
[1762007047958,4.8839,184.36,184.35,6.74937437]
[1762007048158,7.6739,184.36,184.35,79.86]
[1762007048458,2.79,184.4,184.35,82.59]
[1762007048649,4.8836,184.37,184.35,82.59]
[1762007048849,7.6736,184.37,184.35,79.86]
[1762007049361,4.8836,184.37,184.35,82.59]
[1762007049561,4.8836,184.37,184.35,79.86]
[1762007049960,4.8836,184.37,184.34,9.47937437]
[1762007050166,4.8836,184.37,184.35,82.57]
[1762007050555,4.8836,184.37,184.35,2.73]
[1762007050752,4.8836,184.37,184.36,79.84]
[1762007051864,1.33,184.38,184.36,79.84]
[1762007052062,4.12,184.38,184.36,79.84]
[1762007052364,1.33,184.38,184.36,79.84]
[1762007052967,6.2136,184.38,184.36,79.84]
[1762007053566,9.0036,184.38,184.36,79.84]
[1762007054666,2.79,184.34,184.31,9.47937437]
[1762007054867,2.79,184.34,184.32,6.74937437]
[1762007055066,4.8842,184.35,184.33,79.82]
[1762007055271,7.6742,184.35,184.33,79.82]
[1762007056072,4.8847,184.34,184.32,6.74937437]
[1762007056273,4.8847,184.34,184.33,79.82]
[1762007058674,2.79,184.33,184.31,6.74937437]
[1762007058875,8.0779804,184.32,184.28,9.47937437]
[1762007059177,4.20265781,184.31,184.29,82.51]
[1762007059472,2.79,184.33,184.29,2.73]
[1762007059772,8.07873209,184.32,184.3,79.78]
[1762007060076,8.07873209,184.32,184.29,2.73]
[1762007060077,4.885,184.32,184.29,2.73]
[1762007060280,4.20274452,184.31,184.3,81.89970104]
[1762007060480,4.885,184.32,184.3,81.89970104]
[1762007061174,8.08600511,184.31,184.3,81.89970104]
[1762007063282,4.8841,184.36,184.31,2.94]
[1762007063586,7.8041,184.36,184.35,2.11970104]
[1762007063775,4.8841,184.36,184.35,81.87970104]
[1762007064077,1.33,184.38,184.36,2.94]
[1762007064273,1.33,184.38,184.37,2.11970104]
[1762007064581,2.92,184.42,184.37,5.05970104]
[1762007064769,7.8023,184.42,184.41,2.11970104]
[1762007065171,7.8023,184.42,184.41,6.30812065]
[1762007065575,7.8023,184.42,184.41,2.065e-05]
[1762007067887,4.8823,184.42,184.41,2.065e-05]
[1762007069985,4.8823,184.42,184.41,2.94002065]
[1762007070171,9.7587,184.54,184.42,2.94]
[1762007070376,9.7587,184.54,184.44,3.30895322]
[1762007070585,9.7587,184.54,184.44,77.24895322]
[1762007070979,167.36014222,184.57,184.38,7.437e-05]
[1762007070980,75.9196,184.49,184.38,7.437e-05]
[1762007071188,75.9196,184.49,184.34,3.30895322]
[1762007071689,3.30895322,184.44,184.33,2.94]
[1762007072285,2.92,184.43,184.33,2.94]
[1762007075190,2.92,184.41,184.33,2.94]
[1762007075391,2.92,184.39,184.33,2.94]
[1762007075590,11.91211951,184.4,184.33,2.94]
[1762007075591,2.92,184.37,184.33,2.94]
[1762007075792,11.52316629,184.36,184.33,2.94]
[1762007075988,8.60316629,184.35,184.32,2.94]
[1762007076183,2.92,184.36,184.32,2.94]
[1762007076184,8.60316629,184.34,184.32,2.94]
[1762007076491,4.37623124,184.33,184.32,2.94]
[1762007078092,4.37623124,184.33,184.32,82.6]
[1762007079390,7.29623124,184.33,184.29,2.94]
[1762007079584,11.52482366,184.32,184.29,82.6]
[1762007079780,2.92,184.3,184.21,10.14272195]
[1762007079984,4.37623124,184.29,184.22,2.94]
[1762007080184,4.37623124,184.28,184.24,2.94]
[1762007080384,4.37623124,184.27,184.24,2.94]
[1762007080586,2.92,184.3,184.24,2.94]
[1762007080784,8.60218124,184.29,184.24,2.94]
[1762007081095,4.37417715,184.28,184.24,2.94]
[1762007081287,4.37417715,184.27,184.24,2.94]
[1762007081486,4.37268834,184.26,184.24,2.94]
[1762007081690,2.92,184.3,184.24,2.94]
[1762007081896,11.51936454,184.29,184.24,2.94]
[1762007082087,4.37268834,184.28,184.24,2.94]
[1762007082288,4.37268834,184.27,184.24,2.94]
[1762007082493,2.92,184.29,184.24,2.94]
[1762007082691,4.37126304,184.28,184.24,2.94]
[1762007082883,4.37126304,184.27,184.24,2.94]
[1762007083082,2.92,184.29,184.24,2.94]
[1762007083281,4.37126635,184.28,184.24,2.94]
[1762007083481,4.36996365,184.27,184.24,2.94]
[1762007083691,2.92,184.29,184.24,2.94]
[1762007083891,4.36996365,184.28,184.24,2.94]
[1762007084091,4.36996365,184.27,184.24,2.94]
[1762007084392,2.92,184.33,184.24,2.94]
[1762007084587,8.59229672,184.32,184.24,2.94]
[1762007084788,4.36971444,184.31,184.24,2.94]
[1762007084987,4.36971444,184.3,184.24,2.94]
[1762007085290,4.37016182,184.29,184.24,2.94]
[1762007085491,2.92,184.33,184.24,2.94]
[1762007085690,8.59291053,184.32,184.24,2.94]
[1762007085887,4.37002616,184.31,184.24,2.94]
[1762007086095,4.37002616,184.3,184.26,2.69]
[1762007086286,4.37002616,184.29,184.26,2.69]
[1762007086487,2.92,184.33,184.26,2.69]
[1762007086689,8.59173191,184.32,184.26,2.69]
[1762007086895,11.34173191,184.31,184.26,2.69]
[1762007087098,4.36923937,184.3,184.26,2.69]
[1762007087300,4.36923937,184.29,184.26,2.69]
[1762007087498,2.75,184.31,184.26,2.69]
[1762007087688,4.36881375,184.3,184.26,2.69]
[1762007087998,4.36881375,184.29,184.26,2.69]
[1762007088192,2.75,184.31,184.26,2.69]
[1762007088497,4.36849861,184.3,184.26,2.69]
[1762007088691,4.36849861,184.29,184.26,2.69]
[1762007088993,4.36849861,184.28,184.26,2.69]
[1762007089297,2.75,184.34,184.26,2.69]
[1762007089502,11.42447609,184.33,184.26,2.69]
[1762007089789,8.67447609,184.32,184.26,2.69]
[1762007090098,11.42447609,184.31,184.26,2.69]
[1762007090294,4.4526844,184.3,184.26,2.69]
[1762007090496,4.4526844,184.29,184.26,2.69]
[1762007090795,4.4526844,184.28,184.26,2.69]
[1762007090996,2.75,184.31,184.26,2.69]
[1762007091189,4.45249283,184.3,184.26,2.69]
[1762007091385,4.45249283,184.29,184.26,2.69]
[1762007091586,2.75,184.34,184.26,2.69]
[1762007091787,8.6743821,184.33,184.26,2.69]
[1762007091990,8.6743821,184.32,184.26,2.69]
[1762007092186,4.45285423,184.31,184.26,2.69]
[1762007092389,4.45285423,184.3,184.26,2.69]
[1762007092590,4.45285423,184.29,184.26,2.69]
[1762007092786,2.75,184.34,184.26,2.69]
[1762007092989,8.69835311,184.33,184.26,2.69]
[1762007093202,8.69835311,184.32,184.26,2.69]
[1762007093395,4.45314356,184.31,184.26,2.69]
[1762007093598,4.45314356,184.3,184.26,2.69]
[1762007093798,4.45314356,184.29,184.26,2.69]
[1762007093995,2.75,184.34,184.26,2.69]
[1762007094193,8.69837793,184.33,184.26,2.69]
[1762007094389,2.75,184.34,184.27,2.69]
[1762007094390,8.69837793,184.32,184.27,2.69]
[1762007094594,4.45315685,184.31,184.27,2.69]
[1762007094804,4.45315685,184.3,184.27,2.69]
[1762007094998,2.75,184.34,184.27,2.69]
[1762007095195,2.75,184.32,184.28,82.27]
[1762007095396,4.45362214,184.31,184.28,82.27]
[1762007095595,4.45362214,184.3,184.28,82.27]
[1762007095894,2.75,184.32,184.28,82.27]
[1762007096202,4.45382863,184.31,184.28,82.27]
[1762007096405,2.75,184.32,184.28,82.27]
[1762007096406,4.45382863,184.3,184.28,82.27]
[1762007096589,2.75,184.32,184.28,82.27]
[1762007096788,4.45412086,184.31,184.28,82.27]
[1762007096988,4.45412086,184.3,184.28,82.27]
[1762007097192,2.75,184.32,184.28,82.27]
[1762007097398,4.45392916,184.31,184.28,2.69]
[1762007097599,4.45392916,184.3,184.29,79.56]
[1762007098603,4.45392916,184.3,184.26,7.74821027]
[1762007098903,2.75,184.28,184.25,5.05821027]
[1762007099207,3.30895322,184.36,184.25,5.05821027]
[1762007099208,2.75,184.35,184.26,79.56]
[1762007099500,2.75,184.33,184.26,79.56]
[1762007099700,11.44984217,184.32,184.26,79.56]
[1762007099903,11.44984217,184.31,184.27,2.69]
[1762007100102,4.45368623,184.3,184.27,2.69]
[1762007100295,4.45368623,184.29,184.27,2.69]
[1762007100497,4.45368623,184.28,184.27,2.69]
[1762007102305,2.75,184.34,184.27,2.69]
[1762007102500,8.70065204,184.33,184.27,2.69]
[1762007102692,8.70065204,184.32,184.27,2.69]
[1762007102897,4.45415698,184.31,184.27,2.69]
[1762007103102,4.45415698,184.3,184.27,2.69]
[1762007103302,4.45415698,184.29,184.27,2.69]
[1762007103503,2.75,184.34,184.27,2.69]
[1762007103703,11.45076367,184.33,184.27,2.69]
[1762007103907,8.70076367,184.32,184.27,2.69]
[1762007104206,4.4542172,184.31,184.27,2.69]
[1762007104394,4.4542172,184.3,184.27,2.69]
[1762007104595,7.20437729,184.29,184.26,5.05821027]
[1762007104906,3.30895322,184.41,184.21,7.74821027]
[1762007104907,2.75,184.27,184.21,7.74821027]
[1762007105108,7.20401407,184.26,184.22,79.52]
[1762007105298,4.45401407,184.25,184.22,82.21]
[1762007105498,4.45401407,184.24,184.22,82.21]
[1762007105706,2.75,184.26,184.22,82.21]
[1762007106004,2.75,184.24,184.19,7.74821027]
[1762007106206,3.30895322,184.3,184.2,79.52]
[1762007106207,7.20077598,184.23,184.2,79.52]
[1762007106408,2.75,184.23,184.2,79.52]
[1762007106706,2.75,184.23,184.2,82.21]
[1762007109104,2.75,184.26,184.21,2.69]
[1762007109309,7.19532202,184.25,184.22,79.52]
[1762007109508,7.19532202,184.24,184.22,79.52]
[1762007109709,4.44532202,184.23,184.22,79.52]
[1762007110100,4.44532202,184.23,184.21,2.69]
[1762007110301,2.75,184.29,184.22,82.19]
[1762007110510,11.43389644,184.28,184.22,82.19]
[1762007110716,4.44400527,184.27,184.23,2.69]
[1762007111010,2.75,184.31,184.23,2.69]
[1762007111210,8.68685347,184.3,184.23,2.69]
[1762007111417,4.44628954,184.29,184.23,2.69]
[1762007111612,4.44628954,184.28,184.23,2.69]
[1762007111812,2.75,184.31,184.23,2.69]
[1762007112009,11.43773749,184.3,184.23,2.69]
[1762007112210,7.19705776,184.29,184.25,2.69]
[1762007112409,4.44705776,184.28,184.25,2.69]
[1762007112720,4.44705776,184.27,184.25,2.69]
[1762007112913,2.75,184.29,184.26,79.5]
[1762007113208,2.75,184.27,184.26,79.5]
[1762007113403,7.19767574,184.27,184.26,79.5]
[1762007113606,4.44767574,184.27,184.26,79.5]
[1762007114013,9.33417574,184.27,184.26,79.5]
[1762007114910,12.08417574,184.27,184.26,79.5]
[1762007115106,12.08417574,184.27,184.22,7.74821027]
[1762007115107,4.887,184.25,184.22,2.69]
[1762007115307,4.44767574,184.24,184.23,79.48]
[1762007115509,4.44767574,184.24,184.23,82.17]
[1762007115708,4.887,184.25,184.24,2.69]
[1762007115908,9.34143926,184.25,184.24,2.69]
[1762007116109,9.34143926,184.25,184.23,79.48]
[1762007116418,7.39443926,184.24,184.21,7.99821027]
[1762007116603,7.8273,184.24,184.21,7.99821027]
[1762007116918,4.45346707,184.23,184.22,79.46]
[1762007119314,4.45346707,184.23,184.21,2.94]
[1762007119519,4.8873,184.24,184.22,79.46]
[1762007119725,4.45396684,184.23,184.21,2.94]
[1762007120023,7.8276,184.23,184.2,5.05821027]
[1762007120318,4.45332209,184.22,184.2,5.05821027]
[1762007120521,7.8276,184.23,184.21,79.46]
[1762007120813,7.8276,184.23,184.21,82.4]
[1762007120814,4.45365073,184.22,184.21,82.4]
[1762007121624,4.8866,184.26,184.22,2.88]
[1762007121917,4.45461537,184.25,184.22,2.88]
[1762007122119,4.45461537,184.24,184.22,2.88]
[1762007122416,4.45461537,184.23,184.22,2.88]
[1762007122618,4.45527971,184.23,184.22,2.88]
[1762007127719,4.45656612,184.23,184.22,2.88]
[1762007129622,4.45656612,184.23,184.21,84.51821027]
[1762007129815,4.45523216,184.22,184.21,84.51821027]
[1762007130012,4.45523216,184.22,184.21,79.4]
[1762007130215,4.45523216,184.22,184.2,7.93821027]
[1762007130518,4.45458253,184.21,184.2,2.88]
[1762007130711,4.45458253,184.21,184.2,82.28]
[1762007131122,4.45458253,184.21,184.19,5.05821027]
[1762007131317,2.93,184.24,184.2,79.38]
[1762007131622,2.93,184.22,184.2,79.38]
[1762007131819,4.45437975,184.21,184.2,79.38]
[1762007132019,9.34227975,184.21,184.2,79.38]
[1762007133225,9.34227975,184.21,184.19,7.93821027]
[1762007133528,4.8879,184.21,184.2,79.38]
[1762007133718,9.34203077,184.21,184.2,79.38]
[1762007134120,4.45413077,184.21,184.2,79.38]
[1762007137030,4.45413077,184.21,184.2,82.26]
[1762007141731,5.0518835,184.28,184.21,2.88]
[1762007141934,8.69939268,184.27,184.22,2.88]
[1762007142125,4.45465757,184.26,184.24,2.88]
[1762007142328,4.45465757,184.25,184.24,2.88]
[1762007144335,4.45465757,184.25,184.24,7.9496313]
[1762007149434,4.45465757,184.25,184.24,2.88]
[1762007150642,4.8871,184.24,184.22,9.47707031]
[1762007150842,4.8871,184.24,184.23,87.0874625]
[1762007151042,9.31721054,184.24,184.23,82.01]
[1762007153843,9.31721054,184.24,184.23,81.99]
[1762007154246,4.43011054,184.24,184.23,81.99]
[1762007154546,4.43011054,184.24,184.23,88.73707031]
[1762007154740,4.43011054,184.24,184.23,81.99]
[1762007156250,8.65900608,184.24,184.23,81.99]
[1762007156545,4.43011054,184.24,184.23,81.99]
[1762007157249,8.65900608,184.24,184.23,81.99]
[1762007158248,4.43011054,184.24,184.23,81.99]
[1762007160644,4.43011054,184.24,184.22,6.74707031]
[1762007160845,8.65952103,184.23,184.2,6.74707031]
[1762007161152,2.81,184.21,184.2,6.74707031]
[1762007161452,2.81,184.19,184.17,6.74707031]
[1762007161656,4.43011054,184.18,184.16,9.47707031]
[1762007161954,4.43011054,184.17,184.16,9.47707031]
[1762007162254,4.43011054,184.17,184.16,88.67707031]
[1762007164253,4.43011054,184.17,184.16,81.93]
[1762007168558,7.24011054,184.17,184.16,5.07254688]
[1762007168851,7.24011054,184.17,184.16,79.18]
[1762007169353,9.31911054,184.17,184.16,79.18]
[1762007169952,9.31911054,184.17,184.16,84.25254688]
[1762007171755,4.8895,184.15,184.14,5.07254688]
[1762007171954,2.81,184.14,184.12,5.07254688]
[1762007172152,7.22879387,184.13,184.1,5.07254688]
[1762007172350,7.22879387,184.12,184.09,7.80254688]
[1762007172549,4.41879387,184.11,184.1,79.16]
[1762007174771,7.22879387,184.11,184.1,79.16]
[1762007174960,7.22879387,184.11,184.07,2.73]
[1762007175161,2.81,184.11,184.08,79.14]
[1762007175357,2.1218835,184.14,184.09,2.73]
[1762007175562,2.81,184.12,184.09,2.73]
[1762007175765,4.40506949,184.11,184.09,2.73]
[1762007176063,2.81,184.12,184.09,2.73]
[1762007176254,7.33506949,184.11,184.09,2.73]
[1762007176460,2.93,184.11,184.08,82.09]
[1762007177064,4.8908,184.1,184.08,82.09]
[1762007177563,2.93,184.07,184.04,2.95]
[1762007177757,2.93,184.07,184.05,79.14]
[1762007177957,2.93,184.07,184.06,79.14]
[1762007178159,4.8915,184.08,184.06,79.14]
[1762007178456,2.1218835,184.11,184.06,82.09]
[1762007178457,2.93,184.09,184.06,82.09]
[1762007179265,2.93,184.14,184.07,2.95]
[1762007179469,4.39296659,184.13,184.07,2.95]
[1762007179961,5.0518835,184.17,184.07,2.95]
[1762007180157,4.39436286,184.16,184.07,2.95]
[1762007180467,4.39436286,184.15,184.07,2.95]
[1762007180669,486.32632347,184.14,184.07,2.95]
[1762007181060,2.96,184.18,184.07,2.95]
[1762007181261,4.39428819,184.17,184.07,2.95]
[1762007181764,4.39428819,184.17,184.07,2.1218835]
[1762007181970,9.28348819,184.17,184.08,2.77]
[1762007182159,4.8892,184.17,184.08,2.77]
[1762007183868,4.8895,184.16,184.08,2.77]
[1762007184370,7.8495,184.16,184.08,2.77]
[1762007184666,4.8897,184.15,184.08,2.77]
[1762007185060,7.8497,184.15,184.08,2.77]
[1762007185259,4.89,184.14,184.08,2.77]
[1762007185862,2.96,184.2,184.08,2.77]
[1762007186057,7.35830476,184.19,184.08,2.77]
[1762007186271,4.39830476,184.18,184.08,2.77]
[1762007186971,4.8891,184.17,184.08,2.77]
[1762007187170,2.96,184.17,184.08,2.77]
[1762007188057,4.8895,184.15,184.08,2.77]
[1762007188462,4.89,184.13,184.08,2.77]
[1762007188671,4.89,184.13,184.1,2.77]
[1762007188976,2.96,184.17,184.1,2.77]
[1762007189270,4.8894,184.16,184.1,2.77]
[1762007190165,4.8897,184.15,184.1,2.77]
[1762007191566,2.96,184.17,184.1,2.77]
[1762007191871,4.4003176,184.16,184.1,2.77]
[1762007192174,2.96,184.17,184.1,2.77]
[1762007193174,4.8888,184.18,184.1,2.77]
[1762007193674,2.96,184.2,184.11,2.77]
[1762007193872,4.40375516,184.19,184.11,2.77]
[1762007194064,9.29245516,184.19,184.11,2.77]
[1762007194373,4.8887,184.19,184.11,7.81117511]
[1762007194573,4.8887,184.19,184.12,2.77]
[1762007194767,4.8889,184.18,184.12,2.77]
[1762007195366,3.31933028,184.26,184.13,79.06]
[1762007195367,2.96,184.16,184.13,79.06]
[1762007195572,2.96,184.16,184.13,81.83]
[1762007196275,7.8492,184.17,184.13,81.83]
[1762007197180,7.8485,184.19,184.14,2.77]
[1762007197377,4.40845838,184.18,184.14,2.77]
[1762007197674,7.8485,184.19,184.15,81.81]
[1762007197873,4.40890311,184.18,184.15,36.47]
[1762007198280,7.8485,184.19,184.15,36.47]
[1762007198576,4.41049277,184.18,184.15,36.47]
[1762007198777,7.8485,184.19,184.15,36.47]
[1762007198978,4.41049048,184.18,184.15,36.47]
[1762007199172,7.8485,184.19,184.15,36.47]
[1762007199373,4.41105262,184.18,184.15,36.47]
[1762007199679,7.8485,184.19,184.15,36.47]
[1762007199876,4.41310526,184.18,184.15,36.47]
[1762007200176,7.8485,184.19,184.15,36.47]
[1762007200376,4.41439304,184.18,184.15,36.47]
[1762007200674,7.8485,184.19,184.15,36.47]
[1762007200868,4.41439304,184.18,184.15,36.47]
[1762007201078,7.8485,184.19,184.15,36.47]
[1762007201268,4.41439304,184.18,184.15,36.47]
[1762007201472,4.41439304,184.17,184.15,36.47]
[1762007201679,7.8485,184.19,184.16,2.95]
[1762007201876,4.41562592,184.18,184.16,2.95]
[1762007202076,4.41562592,184.17,184.16,2.95]